bitfinex/quotes_ETHUSD_20260117
["timestamp","ask_amount","ask_price","bid_price","bid_amount"]
[1768620155338,1.65224459,3289.3,3289.1,0.001]
[1768620183383,1.78040902,3289.4,3289.1,0.001]
[1768620184799,1.78040902,3289.3,3289.1,0.001]
[1768620192585,4.8205816,3289.3,3288.7,1.24237361]
[1768620192783,1.78040902,3289.2,3288.7,1.24237361]
[1768620194675,1.78040902,3289.1,3288.7,0.503]
[1768620195004,1.78040902,3289.1,3288.7,0.001]
[1768620195207,1.78040902,3288.9,3288.7,0.001]
[1768620195914,1.52047218,3288.9,3288.7,0.001]
[1768620201880,4.56100883,3288.9,3288.7,0.001]
[1768620202921,1.52047218,3288.9,3288.7,0.001]
[1768620204931,4.56103977,3288.9,3288.7,0.001]
[1768620208737,1.66850305,3288.8,3288.7,0.001]
[1768620210113,3.04045591,3289.0,3288.7,0.001]
[1768620210114,4.70895896,3289.0,3288.7,0.001]
[1768620216038,1.66850305,3289.0,3288.7,0.001]
[1768620219343,5.31514704,3289.1,3288.7,0.001]
[1768620223648,3.04038244,3289.1,3288.7,1.00710165]
[1768620223833,3.95235157,3289.1,3288.7,1.00710165]
[1768620227959,3.04038244,3289.1,3288.7,1.00710165]
[1768620228328,0.91196913,3289.0,3288.7,1.00710165]
[1768620238671,0.91196913,3289.0,3288.7,0.001]
[1768620251976,1.59951706,3289.1,3288.7,0.001]
[1768620252177,4.63986889,3289.1,3288.7,0.001]
[1768620256785,3.04035183,3289.1,3288.7,0.001]
[1768620257100,1.59951706,3289.0,3288.7,0.001]
[1768620258884,4.63996466,3289.0,3288.7,0.001]
[1768620260500,1.59951706,3288.9,3288.7,0.001]
[1768620289635,1.57810915,3288.8,3288.7,0.001]
[1768620290009,4.61858953,3289.0,3288.7,0.001]
[1768620290210,5.52967623,3289.0,3288.7,0.001]
[1768620290437,3.95156708,3289.0,3288.7,0.001]
[1768620290637,3.04038954,3289.1,3288.7,0.001]
[1768620291015,4.61849869,3289.1,3288.7,0.001]
[1768620293144,4.61849869,3289.1,3288.7,0.78804493]
[1768620295636,1.57810915,3289.1,3288.7,0.78804493]
[1768620297042,4.61846135,3289.1,3288.7,0.78804493]
[1768620297440,3.0403522,3289.1,3288.7,0.78804493]
[1768620297740,6.12266732,3289.2,3288.7,0.78804493]
[1768620299112,2.58034506,3289.2,3288.7,0.78804493]
[1768620299313,3.04023478,3289.3,3288.7,0.78804493]
[1768620299536,4.70857744,3289.3,3288.7,0.78804493]
[1768620299915,4.70857744,3289.3,3288.7,3.8287462]
[1768620300140,4.70857744,3289.3,3288.8,0.76783149]
[1768620300645,3.04023478,3289.3,3288.8,0.76783149]
[1768620300823,3.04023478,3289.3,3288.9,0.76520773]
[1768620301324,1.66834266,3289.4,3288.9,0.76520773]
[1768620303251,3.04016052,3289.3,3288.9,0.76520773]
[1768620308653,4.70850318,3289.3,3288.9,0.76520773]
[1768620310555,0.002,3289.0,3288.9,0.76520773]
[1768620314267,0.002,3289.0,3288.8,0.73369204]
[1768620315741,0.002,3289.0,3288.8,1.11123906]
[1768620319368,1.67034266,3289.0,3288.7,0.001]
[1768620319664,0.002,3289.0,3288.7,0.001]
[1768620322180,1.54042748,3288.9,3288.7,0.001]
[1768620322781,0.002,3289.0,3288.7,0.001]
[1768620322979,1.54242748,3289.0,3288.7,0.001]
[1768620339713,4.58289763,3289.0,3288.7,0.001]
[1768620339901,1.55168511,3288.9,3288.7,0.001]
[1768620350444,0.002,3289.0,3288.7,0.001]
[1768620356581,1.50510966,3289.0,3288.7,0.001]
[1768620375436,1.50310966,3288.8,3288.4,0.001]
[1768620379761,1.50310966,3288.7,3288.4,0.001]
[1768620387371,1.50310966,3288.7,3288.1,3.04207895]
[1768620393801,1.50310966,3288.7,3288.4,0.001]
[1768620406419,1.50510966,3288.7,3288.4,0.001]
[1768620407216,1.50199641,3288.7,3288.4,0.001]
[1768620408428,1.54000534,3288.7,3288.4,0.001]
[1768620409614,3.0807369,3288.7,3288.4,0.001]
[1768620409819,1.44886612,3288.6,3288.4,0.001]
[1768620456790,1.53200276,3288.5,3288.1,0.00080892]
[1768620464832,1.53200276,3288.5,3288.1,0.57739275]
[1768620465037,2.98610005,3288.7,3288.1,0.57739275]
[1768620465231,2.07401169,3288.7,3288.1,0.57739275]
[1768620466335,2.07401169,3288.7,3288.4,0.001]
[1768620466639,0.60267644,3288.6,3288.4,0.001]
[1768620474947,2.09121705,3288.6,3288.4,0.001]
[1768620479352,1.48854061,3288.5,3288.4,0.001]
[1768620482671,4.52944071,3288.5,3288.1,0.00080892]
[1768620482869,1.48854061,3288.4,3288.1,0.00080892]
[1768620528123,0.91209945,3288.5,3288.1,0.5578002]
[1768620528277,0.002,3288.7,3288.3,0.55699128]
[1768620528681,0.002,3288.7,3288.3,3.59805755]
[1768620529321,1.91080235,3288.8,3288.3,3.59805755]
[1768620530916,1.91080235,3288.8,3288.3,0.55699128]
[1768620536328,1.40472989,3288.7,3288.3,0.55699128]
[1768620536818,1.40472989,3288.7,3288.2,3.04113527]
[1768620538129,1.40472989,3288.7,3288.6,0.001]
[1768620541794,1.99447472,3288.7,3288.6,0.001]
[1768620549530,1.40472989,3288.7,3288.6,0.001]
[1768620552706,4.44544506,3288.7,3288.6,0.001]
[1768620557946,1.40472989,3288.6,3288.1,0.00080892]
[1768620560748,1.40472989,3288.5,3288.1,0.00080892]
[1768620561743,1.44274114,3288.5,3288.1,0.00080892]
[1768620562046,1.44703057,3288.5,3288.1,0.00080892]
[1768620573853,1.44703057,3288.5,3288.4,0.001]
[1768620574162,1.89961606,3288.5,3288.4,0.001]
[1768620576067,1.44703057,3288.5,3288.4,0.001]
[1768620585370,1.44703057,3288.5,3288.0,3.5165736]
[1768620595531,3.54255511,3288.9,3288.3,0.08871214]
[1768620595532,0.502,3288.9,3288.3,0.08871214]
[1768620595792,0.002,3289.3,3288.6,0.44880276]
[1768620596085,0.002,3289.3,3288.7,0.44880276]
[1768620596276,1.43492583,3289.3,3288.7,0.44880276]
[1768620596654,1.43492583,3289.3,3288.8,0.66053037]
[1768620597586,1.43292583,3289.2,3288.8,0.66053037]
[1768620598490,1.43292583,3289.2,3288.7,0.44880276]
[1768620598656,1.43292583,3289.2,3288.7,1.36073863]
[1768620599204,1.43292583,3289.1,3288.7,0.91193587]
[1768620600452,1.43292583,3289.1,3288.5,0.15853037]
[1768620600652,1.43292583,3289.0,3288.5,0.15853037]
[1768620601423,1.43292583,3289.0,3288.5,3.19942157]
[1768620601758,1.43292583,3289.0,3288.5,3.0408912]
[1768620602496,1.43292583,3289.0,3288.4,3.4878455]
[1768620602673,1.43292583,3289.0,3288.4,3.04095386]
[1768620602983,3.0404548,3289.0,3288.3,3.98957338]
[1768620603190,1.43292583,3288.8,3288.3,0.502]
[1768620606088,3.04064338,3288.8,3288.3,0.502]
[1768620606285,1.43292583,3288.7,3288.3,0.502]
[1768620607005,1.43292583,3288.7,3288.1,3.04126663]
[1768620609803,1.43292583,3288.7,3288.6,0.001]
[1768620610004,1.88028275,3288.7,3288.6,0.001]
[1768620610310,1.72175238,3288.7,3288.6,0.001]
[1768620621043,1.70433152,3288.7,3288.6,0.001]
[1768620628846,4.74504669,3288.7,3288.6,0.001]
[1768620629351,3.48807209,3288.7,3288.2,0.6048723]
[1768620629645,1.42381726,3288.6,3288.2,0.6048723]
[1768620630021,1.42381726,3288.6,3288.1,3.04122919]
[1768620630230,1.42381726,3288.6,3288.0,3.66681361]
[1768620630854,1.4691884,3288.5,3288.0,3.66681361]
[1768620631945,1.4691884,3288.5,3288.0,0.62548085]
[1768620633567,1.4691884,3288.4,3287.9,3.54441315]
[1768620633861,1.4691884,3288.4,3287.9,0.503]
[1768620635925,1.4691884,3288.3,3287.9,0.503]
[1768620638769,4.51030463,3288.3,3287.9,0.503]
[1768620638983,1.4691884,3288.2,3287.9,0.503]
[1768620652974,1.4691884,3288.2,3287.9,0.001]
[1768620662085,4.51036648,3288.2,3287.9,0.001]
[1768620662253,1.4990517,3288.1,3287.9,0.001]
[1768620665088,1.4990517,3288.3,3287.9,0.001]
[1768620668894,1.4990517,3288.3,3288.2,0.001]
[1768620669095,2.00326055,3288.3,3288.2,0.001]
[1768620671805,1.4990517,3288.2,3287.9,0.001]
[1768620684926,3.54529547,3288.3,3287.9,0.001]
[1768620685296,5.07463372,3288.3,3287.9,0.001]
[1768620689033,2.0335471,3288.3,3287.9,0.001]
[1768620690932,5.07465148,3288.3,3287.9,0.001]
[1768620691333,1.39843414,3288.1,3287.6,0.502]
[1768620691641,0.55766515,3288.2,3287.4,3.68212003]
[1768620691642,1.39843414,3287.8,3287.4,0.001]
[1768620694244,1.39843414,3287.7,3287.4,0.001]
[1768620696249,3.0416724,3287.7,3287.4,0.001]
[1768620696547,1.70260138,3287.6,3287.4,0.001]
[1768620698052,1.39843414,3287.6,3287.4,0.001]
[1768620703305,4.44018903,3287.6,3287.4,0.001]
[1768620703596,1.39843414,3287.5,3287.4,0.001]
[1768620716079,4.44025923,3287.5,3287.4,0.001]
[1768620718809,1.39843414,3287.5,3287.4,0.001]
[1768620719011,5.18844557,3287.5,3287.4,0.001]
[1768620725327,2.14662048,3287.5,3287.4,0.001]
[1768620728445,5.18844557,3287.5,3287.4,0.001]
[1768620731406,2.14662048,3287.5,3287.4,0.001]
[1768620733346,0.74818634,3287.5,3287.4,0.001]
[1768620733641,3.04177246,3287.6,3287.4,0.001]
[1768620733642,4.47591586,3287.6,3287.4,0.001]
[1768620733844,1.4341434,3287.6,3287.4,0.001]
[1768620734408,3.54367577,3287.7,3287.4,0.001]
[1768620734945,4.97781917,3287.7,3287.4,0.001]
[1768620735326,1.4341434,3287.6,3287.4,0.001]
[1768620735516,0.49778192,3287.5,3287.4,0.001]
[1768620741458,1.93192532,3287.5,3287.4,0.001]
[1768620741622,4.97375041,3287.5,3287.4,0.001]
[1768620750266,1.93192532,3287.5,3287.4,0.001]
[1768620750439,1.4341434,3287.5,3287.4,0.001]
[1768620753668,4.47596849,3287.5,3287.4,0.001]
[1768620755062,1.41187759,3287.4,3287.2,0.00080646]
[1768620758064,1.41187759,3287.3,3287.2,0.00080646]
[1768620759549,1.41187759,3287.2,3287.1,0.001]
[1768620759874,1.41187759,3287.1,3286.7,0.64511906]
[1768620760052,1.41187759,3287.0,3286.5,0.64603472]
[1768620761170,1.41187759,3287.0,3286.5,0.00080564]
[1768620762468,4.45425794,3286.9,3286.5,0.00080564]
[1768620762670,1.41187759,3286.8,3286.5,0.00080564]
[1768620764773,4.45444308,3286.7,3286.5,0.00080564]
[1768620764978,1.41187759,3286.6,3286.5,0.00080564]
[1768620767387,4.45453565,3286.6,3286.5,0.00080564]
[1768620778195,1.41187759,3286.6,3286.5,0.00080564]
[1768620778381,1.41187759,3286.6,3286.2,0.00080605]
[1768620780391,1.91387759,3286.6,3286.2,0.00080605]
[1768620781998,1.91387759,3286.6,3286.2,0.64711131]
[1768620782295,4.95655674,3286.6,3286.2,0.64711131]
[1768620782485,5.7564613,3286.6,3286.2,0.00080605]
[1768620787811,2.71378215,3286.6,3286.2,0.00080605]
[1768620787977,4.956547,3286.6,3286.2,0.00080605]
[1768620788909,1.91387759,3286.6,3286.2,0.00080605]
[1768620789308,1.91387759,3286.6,3286.5,0.002]
[1768620790182,0.502,3286.6,3286.5,0.002]
[1768620800120,4.48192697,3286.8,3286.5,0.002]
[1768620800308,1.01486379,3286.7,3286.5,0.002]
[1768620802141,0.51286379,3286.7,3286.5,0.002]
[1768620802291,0.502,3286.7,3286.5,0.64905154]
[1768620802990,4.54723978,3286.9,3286.5,0.64905154]
[1768620803190,0.502,3286.8,3286.5,0.64905154]
[1768620804123,0.502,3286.8,3286.5,0.002]
[1768620804422,5.04930962,3286.8,3286.5,0.002]
[1768620804602,0.50493096,3286.7,3286.5,0.002]
[1768620808140,2.00681137,3286.8,3286.5,0.002]
[1768620808451,0.502,3286.8,3286.5,0.64919301]
[1768620809266,0.502,3286.8,3286.5,0.002]
[1768620813155,5.02272895,3286.8,3286.5,0.002]
[1768620813947,3.54447855,3286.8,3286.5,0.002]
[1768620814263,1.83269826,3286.7,3286.5,0.002]
[1768620815259,1.4782504,3286.6,3286.2,0.00080605]
[1768620817655,4.52092544,3286.6,3286.2,0.00080605]
[1768620817821,1.4782504,3286.5,3286.2,0.00080605]
[1768620825375,4.52100319,3286.5,3286.2,0.00080605]
[1768620825587,1.4782504,3286.4,3286.2,0.00080605]
[1768620827385,4.52109977,3286.4,3286.2,0.00080605]
[1768620829964,1.4782504,3286.4,3286.2,0.00080605]
[1768620842760,4.47667863,3286.6,3286.2,0.00080605]
[1768620843042,5.31444044,3286.6,3286.2,0.00080605]
[1768620851246,5.31444044,3286.6,3286.5,0.002]
[1768620862082,2.27174881,3286.6,3286.5,0.002]
[1768620866985,0.83776181,3286.6,3286.5,0.002]
[1768620872484,0.83776181,3286.6,3286.2,0.00080605]
[1768620872485,1.51764917,3286.5,3286.2,0.00080605]
[1768620874689,1.51764917,3286.4,3286.2,0.00080605]
[1768620878013,4.56050938,3286.4,3286.2,0.00080605]
[1768620878897,1.51764917,3286.4,3286.2,0.00080605]
[1768620880591,4.56049626,3286.4,3286.2,0.00080605]
[1768620881712,1.51764917,3286.4,3286.2,0.00080605]
[1768620882065,4.56050397,3286.4,3286.2,0.00080605]
[1768620882907,1.51764917,3286.3,3285.5,0.00080523]
[1768620883213,1.51764917,3286.2,3285.5,0.65379568]
[1768620884685,4.56077019,3286.1,3285.5,0.65379568]
[1768620885268,1.51764917,3286.0,3285.5,0.65379568]
[1768620885489,1.51764917,3286.0,3285.5,0.00080523]
[1768620886009,1.51764917,3285.9,3285.5,0.00080523]
[1768620886805,1.51764917,3285.9,3285.8,0.002]
[1768620900618,5.24362082,3286.0,3285.8,0.002]
[1768620901839,0.76038054,3286.0,3285.8,0.002]
[1768620902046,3.04317549,3286.1,3285.8,0.44401956]
[1768620903344,3.04317549,3286.1,3285.8,0.002]
[1768620909722,3.04317549,3286.1,3285.8,0.37723939]
[1768620909927,3.04317549,3286.1,3285.8,0.002]
[1768620914750,3.4093081,3286.1,3285.8,0.002]
[1768620914944,4.24873421,3286.1,3285.8,0.002]
[1768620916870,2.64556346,3286.1,3285.8,0.002]
[1768620917076,1.80613735,3286.1,3285.8,0.002]
[1768620917369,4.84926064,3286.1,3285.8,0.002]
[1768620925969,4.48312803,3286.1,3285.8,0.002]
[1768620927652,4.483176,3286.1,3285.8,0.002]
[1768620934776,3.04317126,3286.1,3285.8,0.002]
[1768620934991,4.25146114,3286.0,3285.8,0.002]
[1768620939795,1.20822661,3286.0,3285.8,0.002]
[1768620940085,4.50041965,3286.2,3285.8,0.002]
[1768620940385,5.30495289,3286.2,3285.8,0.002]
[1768620942783,4.09672628,3286.2,3285.8,0.11354974]
[1768620946284,5.30495289,3286.2,3285.8,0.11354974]
[1768620946583,2.26185227,3286.2,3285.8,0.11354974]
[1768620946769,1.45731903,3286.2,3285.8,0.11354974]
[1768620946983,4.50036929,3286.2,3285.8,0.11354974]
[1768620947589,4.50036929,3286.2,3286.1,0.002]
[1768620947791,4.78521203,3286.2,3286.1,0.002]
[1768620952087,1.74216177,3286.2,3286.1,0.002]
[1768620952285,0.28484274,3286.2,3286.1,0.002]
[1768620953088,3.32787116,3286.2,3286.1,0.002]
[1768620955095,3.32783457,3286.2,3286.1,0.002]
[1768620957593,0.502,3286.2,3286.1,0.02424573]
[1768620957798,0.47975427,3286.2,3286.1,0.33099941]
[1768620958094,0.502,3286.2,3286.1,0.33099941]
[1768620959189,1.20793004,3286.7,3286.2,0.1106731]
[1768620959399,0.502,3286.6,3286.2,0.1106731]
[1768620959690,0.502,3286.6,3286.2,3.15367106]
[1768620959866,0.502,3286.5,3286.3,0.31779168]
[1768620960066,0.502,3286.5,3286.2,3.15367106]
[1768620960905,2.12268719,3286.8,3286.2,3.15367106]
[1768620961116,0.502,3286.7,3286.2,7.59830211]
[1768620961404,0.502,3286.7,3286.2,3.15367106]
[1768620961569,0.502,3286.7,3286.3,0.61987663]
[1768620962699,0.502,3286.6,3286.3,0.61987663]
[1768620964299,0.502,3286.6,3286.3,3.66275046]
[1768620968709,0.42572534,3286.6,3286.3,3.66275046]
[1768620968907,0.502,3286.5,3286.3,6.70568628]
[1768620969118,0.002,3286.8,3286.4,0.68163594]
[1768620969335,0.504,3286.8,3286.7,0.18673147]
[1768620970817,0.002,3286.8,3286.7,0.18673147]
[1768620971193,0.002,3286.8,3286.6,3.04260198]
[1768620973726,0.002,3286.8,3286.5,3.04275064]
[1768620973896,0.002,3286.8,3286.6,0.67671792]
[1768620975594,0.502,3286.9,3286.6,0.67671792]
[1768620975850,0.31527989,3286.9,3286.7,3.04256549]
[1768620976054,1.70993004,3287.0,3286.7,3.04256549]
[1768620976396,1.70993004,3287.0,3286.6,3.71933201]
[1768620980828,1.20793004,3287.3,3286.6,3.71933201]
[1768620981128,1.70993004,3287.2,3286.6,3.04261409]
[1768620981349,1.20793004,3287.1,3286.6,3.04261409]
[1768620981928,1.20793004,3287.1,3286.5,3.04270848]
[1768620984334,0.002,3286.8,3286.5,3.04270848]
[1768620988105,1.09589507,3287.0,3286.5,3.04270848]
[1768620989954,1.09589507,3287.0,3286.5,3.71942133]
[1768620991232,0.002,3287.1,3286.5,3.71942133]
[1768620991430,0.002,3287.1,3286.5,11.20680302]
[1768620991809,1.09876937,3287.1,3286.5,6.76217197]
[1768620992137,1.09876937,3287.1,3286.6,0.79458079]
[1768620994847,1.09876937,3287.1,3286.5,6.08545912]
[1768620997944,1.09876937,3287.1,3286.8,0.001]
[1768621002741,1.09876937,3287.1,3286.8,0.03142472]
[1768621003118,1.09876937,3287.1,3286.8,0.001]
[1768621006045,0.002,3287.1,3286.8,0.001]
[1768621006247,1.09676937,3287.3,3286.8,0.001]
[1768621006441,1.09676937,3287.3,3286.9,3.48687616]
[1768621009860,0.002,3287.0,3286.9,3.48687616]
[1768621010165,1.09876937,3287.3,3286.9,3.48687616]
[1768621022032,1.09876937,3287.3,3286.8,0.001]
[1768621022234,0.002,3287.0,3286.8,0.001]
[1768621022438,1.08904622,3287.2,3286.8,0.001]
[1768621066925,0.002,3287.3,3286.8,0.001]
[1768621067312,0.98340083,3287.3,3286.8,0.001]
[1768621081128,0.002,3287.0,3286.8,0.001]
[1768621081335,0.99075378,3287.2,3286.8,0.001]
[1768621170324,0.99075378,3287.2,3286.8,0.70086764]
[1768621170648,0.96555992,3287.3,3286.8,0.70086764]
[1768621170847,0.96555992,3287.3,3286.8,0.001]
[1768621175148,0.002,3287.0,3286.8,0.001]
[1768621175352,0.96355992,3287.1,3286.8,0.001]
[1768621195373,0.96355992,3287.1,3286.8,3.04347292]
[1768621200582,0.93186928,3287.3,3286.8,3.04347292]
[1768621211085,0.002,3287.0,3286.8,3.04347292]
[1768621211288,0.92986928,3287.2,3286.9,0.69984942]
[1768621211459,0.92986928,3287.2,3286.8,6.08594584]
[1768621212552,0.92986928,3287.2,3286.8,3.04347292]
[1768621217795,0.92986928,3287.2,3286.8,6.08594584]
[1768621218387,0.502,3287.5,3286.8,6.08594584]
[1768621218601,0.92986928,3287.4,3286.9,1.00963862]
[1768621218808,0.92986928,3287.4,3286.9,1.81044474]
[1768621218977,0.92986928,3287.4,3286.9,1.84086854]
[1768621220001,0.502,3287.5,3287.1,1.00963862]
[1768621220411,1.43186928,3287.5,3287.1,1.00963862]
[1768621220775,1.43186928,3287.5,3287.0,3.0422878]
[1768621221190,1.43186928,3287.5,3287.0,7.09421422]
[1768621221479,0.92986928,3287.5,3287.1,0.78950203]
[1768621222098,0.92986928,3287.5,3287.1,3.83162794]
[1768621223229,0.002,3287.4,3287.1,3.83162794]
[1768621226210,0.96387593,3287.4,3287.1,3.83162794]
[1768621229097,0.96387593,3287.4,3287.0,0.91241014]
[1768621234716,0.96387593,3287.4,3286.8,3.04342901]
[1768621234717,0.94942656,3287.3,3286.8,3.04342901]
[1768621239614,0.94942656,3287.3,3286.8,0.001]
[1768621249126,0.94942656,3287.3,3287.1,0.001]
[1768621262745,0.002,3287.4,3287.1,1.04709533]
[1768621262918,0.002,3288.0,3287.2,1.04609533]
[1768621263124,0.50280605,3287.9,3287.3,1.04609533]
[1768621263436,1.41518012,3287.9,3287.3,1.04609533]
[1768621263807,1.41518012,3287.9,3287.5,1.04609533]
[1768621273160,0.002,3287.6,3287.5,1.04609533]
[1768621279671,0.002,3287.6,3287.5,4.08792042]
[1768621279960,1.5398375,3287.9,3287.5,4.08789319]
[1768621280161,1.5398375,3287.9,3287.5,1.04609533]
[1768621284862,1.5398375,3287.9,3287.4,3.04187556]
[1768621285768,0.002,3287.6,3287.4,3.04187556]
[1768621286064,0.002,3287.6,3287.4,0.71216027]
[1768621287265,0.002,3287.6,3287.3,4.07959729]
[1768621287564,0.98614638,3287.6,3287.3,3.04196703]
[1768621287761,0.98614638,3287.6,3287.2,3.04206394]
[1768621287966,0.98614638,3287.6,3287.1,0.001]
[1768621290850,0.98614638,3287.6,3287.2,3.0421027]
[1768621291049,0.98614638,3287.6,3287.2,3.75420424]
[1768621293669,0.002,3287.6,3287.3,1.03571761]
[1768621294380,0.002,3287.6,3287.3,1.06613771]
[1768621294555,0.00280605,3287.9,3287.2,6.79630694]
[1768621294872,0.00280605,3287.9,3287.4,4.07763523]
[1768621295354,0.00280605,3287.9,3287.4,4.8608093]
[1768621295555,0.98078836,3287.9,3287.4,4.8608093]
[1768621297775,0.98078836,3287.9,3287.6,0.001]
[1768621334224,1.48278836,3287.9,3287.6,0.001]
[1768621345619,0.50480605,3287.9,3287.6,1.07385626]
[1768621347335,0.00280605,3287.9,3287.6,1.07385626]
[1768621347543,0.50480605,3287.9,3287.6,1.07385626]
[1768621353548,0.50480605,3287.9,3287.6,0.001]
[1768621354649,1.48975245,3287.9,3287.6,0.001]
[1768621358355,0.98775245,3287.9,3287.6,0.001]
[1768621396594,0.00280605,3287.9,3287.6,0.001]
[1768621413110,0.00280605,3287.9,3287.6,0.99072354]
[1768621420723,0.00280605,3287.9,3287.6,0.001]
[1768621421598,1.04315973,3287.9,3287.6,0.001]
[1768621422421,1.04035368,3287.8,3287.6,0.001]
[1768621422920,1.04035368,3287.7,3287.6,0.001]
[1768621428127,1.04035368,3287.7,3287.1,0.001]
[1768621428932,1.04035368,3287.6,3287.1,0.001]
[1768621430630,1.04035368,3287.5,3287.1,0.001]
[1768621431395,0.9697068,3287.4,3287.1,0.001]
[1768621439357,1.4737068,3287.6,3287.1,0.001]
[1768621439908,1.4737068,3287.6,3287.1,0.99835993]
[1768621441648,0.504,3287.6,3287.2,4.03946263]
[1768621444660,0.504,3287.6,3287.4,0.001]
[1768621444817,0.74261142,3287.6,3287.4,0.001]
[1768621447153,1.71231822,3287.6,3287.4,0.001]
[1768621447360,0.9697068,3287.5,3287.4,0.001]
[1768621448246,0.74261142,3287.6,3287.4,0.001]
[1768621448618,1.71231822,3287.6,3287.4,0.001]
[1768621450621,0.74261142,3287.6,3287.4,0.001]
[1768621453856,0.504,3287.6,3287.4,0.001]
[1768621454359,0.002,3287.6,3287.4,0.001]
[1768621460566,0.002,3287.6,3287.4,0.99835993]
[1768621461448,0.002,3287.6,3287.4,0.001]
[1768621472385,0.002,3287.6,3287.4,0.97592102]
[1768621472593,0.502,3287.8,3287.6,0.97492102]
[1768621475699,0.91517179,3287.9,3287.6,0.97492102]
[1768621475869,1.41717179,3287.9,3287.6,0.97492102]
[1768621476608,1.41717179,3287.9,3287.6,4.01662767]
[1768621477503,1.41717179,3287.9,3287.6,0.97492102]
[1768621478007,1.41717179,3287.9,3287.4,3.04284064]
[1768621478008,1.41717179,3287.9,3287.4,0.97592102]
[1768621478704,1.41717179,3287.9,3287.5,4.01673385]
[1768621479812,0.002,3287.6,3287.5,4.72270761]
[1768621479977,0.00280605,3287.9,3287.6,0.97492102]
[1768621480999,0.00280605,3287.9,3287.7,3.04164005]
[1768621482623,0.502,3288.1,3287.7,0.97492102]
[1768621482906,0.502,3288.1,3287.8,0.70583862]
[1768621483112,0.502,3288.1,3287.7,0.97492102]
[1768621485020,0.502,3288.1,3287.7,4.01648627]
[1768621485600,1.88979077,3288.2,3287.7,4.01648627]
[1768621485786,0.91510202,3288.2,3287.8,0.97492102]
[1768621485987,0.50480564,3288.2,3287.9,1.68073365]
[1768621487086,0.50480564,3288.2,3287.9,4.72212131]
[1768621490724,0.9122298,3288.3,3288.0,0.97492102]
[1768621491028,0.502,3288.4,3288.0,0.97492102]
[1768621491232,0.502,3288.4,3288.1,0.47221213]
[1768621491808,1.41416046,3288.4,3288.1,0.47221213]
[1768621492206,0.002,3288.2,3288.1,0.47221213]
[1768621493505,0.002,3288.5,3288.2,1.02181069]
[1768621496730,0.002,3288.8,3288.4,1.02181069]
[1768621498237,0.95662368,3288.8,3288.2,1.02181069]
[1768621498413,0.95662368,3288.8,3288.2,4.06297144]
[1768621498613,0.95662368,3288.8,3288.3,0.40629714]
[1768621499344,0.95662368,3288.8,3288.3,3.44734699]
[1768621502140,0.95662368,3288.8,3288.3,4.46915768]
[1768621502439,0.95662368,3288.8,3288.3,3.44734699]
[1768621502638,0.95662368,3288.8,3288.3,0.40629714]
[1768621504333,0.95662368,3288.8,3288.4,0.3447439]
[1768621504540,0.002,3288.5,3288.2,3.04114184]
[1768621504939,0.002,3288.5,3288.3,3.04106873]
[1768621506662,0.002,3288.5,3288.2,4.06294916]
[1768621509745,0.95662368,3288.5,3288.1,3.0412264]
[1768621510215,0.95662368,3288.5,3288.0,3.04132012]
[1768621510409,0.95662368,3288.5,3287.8,1.02181069]
[1768621510628,0.95662368,3288.5,3287.9,3.04143227]
[1768621511321,0.76484052,3287.9,3286.8,0.001]
[1768621511539,0.002,3288.5,3286.8,0.001]
[1768621511540,0.76384052,3287.3,3286.8,0.001]
[1768621511843,1.26584052,3287.2,3286.8,0.001]
[1768621512457,0.91246842,3287.1,3286.8,1.02281069]
[1768621512669,0.91246842,3287.1,3286.9,1.02181069]
[1768621512965,0.91246842,3287.1,3286.9,0.67021952]
[1768621513364,0.91246842,3287.1,3286.9,0.35090368]
[1768621514461,0.91246842,3287.1,3286.8,0.40754661]
[1768621514631,0.91246842,3287.1,3286.8,1.4293573]
[1768621516164,1.45662368,3287.3,3286.8,1.4293573]
[1768621516364,1.45662368,3287.3,3287.1,0.001]
[1768621516552,0.502,3287.3,3287.1,0.001]
[1768621516752,0.502,3287.5,3287.2,1.02181069]
[1768621518246,0.502,3287.5,3287.1,1.02281069]
[1768621520572,3.04161702,3287.8,3287.1,1.02281069]
[1768621520573,3.04171181,3287.7,3287.1,1.02281069]
[1768621520753,3.54371181,3287.7,3287.1,1.02281069]
[1768621521067,3.99633549,3287.7,3287.1,1.02281069]
[1768621524777,1.03051408,3288.3,3287.3,1.04463125]
[1768621525073,1.53251408,3288.2,3287.3,1.04463125]
[1768621525378,1.03051408,3288.1,3287.3,1.04463125]
[1768621527975,0.001,3287.8,3287.4,3.04191762]
[1768621528182,0.001,3287.8,3287.5,1.45328614]
[1768621528882,0.001,3287.8,3287.6,1.04463125]
[1768621531389,0.002,3288.5,3287.7,1.05380981]
[1768621531693,3.04107083,3288.4,3287.7,1.05380981]
[1768621531868,4.10307905,3288.4,3287.7,1.05380981]
[1768621532659,7.14414988,3288.4,3287.7,1.05380981]
[1768621533670,4.10307905,3288.4,3287.7,1.05380981]
[1768621534704,4.10307905,3288.4,3287.7,4.09543842]
[1768621535001,4.10307905,3288.4,3287.8,1.05380981]
[1768621537201,4.86787829,3288.4,3287.8,1.05380981]
[1768621537399,1.06200822,3288.3,3287.8,1.05380981]
[1768621539809,0.002,3288.0,3287.8,1.05380981]
[1768621558620,0.002,3288.0,3287.4,3.04191762]
[1768621558823,0.002,3288.0,3287.5,1.02505725]
[1768621564154,0.002,3288.0,3287.8,0.001]
[1768621570017,0.002,3288.0,3287.8,1.02605725]
[1768621588599,0.002,3288.0,3287.9,1.06891799]
[1768621590364,0.002,3288.0,3287.9,1.7872663]
[1768621590796,0.002,3288.0,3287.9,4.82872133]
[1768621591665,0.002,3288.3,3287.9,4.82872133]
[1768621591666,1e-08,3288.3,3288.0,1.08502617]
[1768621593596,1e-08,3288.3,3288.0,4.12635691]
[1768621593805,1e-08,3288.3,3288.0,1.08502617]
[1768621594801,1e-08,3288.3,3288.0,1.87679898]
[1768621595602,1e-08,3288.3,3288.0,4.91814249]
[1768621599975,1e-08,3288.3,3288.0,1.87679898]
[1768621600702,1e-08,3288.3,3288.1,1.08502617]
[1768621608392,1e-08,3288.3,3287.9,4.12646973]
[1768621608622,1e-08,3288.3,3287.9,4.89357993]